fUST/lending_fUST_20251008
["ID","MTS","AMOUNT","RATE_DAILY","PERIOD"]
[389958666,1759909849064,-500.0,0.00021369,2]
[389958668,1759909849073,-500.0,0.00021369,2]
[389958670,1759909849084,-151.0,0.00021369,7]
[389958672,1759909849093,-151.0,0.00021369,7]
[389958674,1759909849103,-151.0,0.00021369,7]
[389958676,1759909849112,-151.0,0.00021369,7]
[389958678,1759909849121,-151.0,0.00021369,7]
[389958680,1759909849131,-648.81,0.00021369,2]
[389958682,1759909849140,-500.0,0.00021369,2]
[389958684,1759909849149,-500.0,0.00021369,2]
[389958686,1759909849158,-151.0,0.00021369,7]
[389958688,1759909849167,-151.0,0.00021369,7]
[389958690,1759909849176,-151.0,0.00021369,7]
[389958692,1759909849185,-197.531162,0.00021369,7]
[389958694,1759909849194,-163.413348,0.00021369,7]
[389958696,1759909849203,-197.531162,0.00021369,7]
[389958698,1759909849212,-197.531162,0.00021369,7]
[389958700,1759909849221,-197.531162,0.00021369,7]
[389958702,1759909849230,-197.531162,0.00021369,7]
[389958704,1759909849240,-500.0,0.00021369,2]
[389958706,1759909849249,-197.531162,0.00021369,7]
[389958708,1759909849259,-197.531162,0.00021369,7]
[389958710,1759909849268,-500.0,0.00021369,2]
[389958712,1759909849277,-197.531162,0.00021369,7]
[389958714,1759909849285,-482.06108906,0.00021369,2]
[389958716,1759909849295,-197.531162,0.00021369,7]
[389958718,1759909849304,-500.0,0.00021369,2]
[389958720,1759909849313,-197.531162,0.00021369,7]
[389958722,1759909849322,-151.0,0.00021369,7]
[389958724,1759909849332,-197.531162,0.00021369,7]
[389958726,1759909849341,-151.0,0.00021369,7]
[389958728,1759909849350,-151.0,0.00021369,7]
[389958730,1759909849359,-1486.0,0.00021369,2]
[389958732,1759909849368,-197.531162,0.00021369,7]
[389958734,1759909849377,-151.0,0.00021369,7]
[389958736,1759909849386,-1371.5,0.00021369,2]
[389958738,1759909849394,-151.0,0.00021369,7]
[389958740,1759909849404,-197.531162,0.00021369,7]
[389958742,1759909849413,-151.0,0.00021369,7]
[389958744,1759909849422,-151.0,0.00021369,7]
[389958746,1759909849431,-197.531162,0.00021369,7]
[389958748,1759909849440,-151.0,0.00021369,7]
[389958750,1759909849449,-151.0,0.00021369,7]
[389958753,1759909849459,-197.531162,0.00021369,7]
[389958755,1759909849468,-151.0,0.00021369,7]
[389958757,1759909849477,-184.628592,0.00021369,7]
[389958759,1759909849486,-197.531162,0.00021369,7]
[389958761,1759909849495,-197.531162,0.00021369,7]
[389958763,1759909849505,-197.531162,0.00021369,7]
[389958765,1759909849514,-197.531162,0.00021369,7]
[389958767,1759909849522,-500.0,0.00021369,2]
[389958769,1759909849532,-197.531152,0.00021369,7]
[389958771,1759909849541,-500.0,0.00021369,2]
[389958773,1759909849551,-4368.692447,0.00021369,7]
[389958775,1759909849560,-4368.692447,0.00021369,7]
[389958777,1759909849569,-4368.692447,0.00021369,7]
[389958779,1759909849579,-4368.692447,0.00021369,7]
[389958781,1759909849588,-4368.692447,0.00021369,7]
[389958783,1759909849598,-4368.692447,0.00021369,7]
[389958784,1759909849607,-4368.692447,0.00021369,7]
[389958785,1759909849618,-4368.692447,0.00021369,7]
[389958786,1759909849627,-761.19,0.00021369,2]
[389958787,1759909849637,-4368.692447,0.00021369,7]
[389958788,1759909849646,-4368.692447,0.00021369,7]
[389958789,1759909849655,-1871.38,0.00021369,2]
[389958790,1759909849664,-500.0,0.00021369,2]
[389958791,1759909849674,-4368.692447,0.00021369,7]
[389958792,1759909849683,-4368.692447,0.00021369,7]
[389958793,1759909849692,-500.0,0.00021369,2]
[389958794,1759909849701,-4368.692447,0.00021369,7]
[389958795,1759909849710,-8497.12,0.00021369,2]
[389958796,1759909849719,-4368.692447,0.00021369,7]
[389958797,1759909849728,-3956.66,0.00021369,2]
[389958798,1759909849737,-4368.692447,0.00021369,7]
[389958800,1759909849746,-4368.692447,0.00021369,7]
[389958802,1759909849755,-500.0,0.00021369,2]
[389958804,1759909849765,-4368.692447,0.00021369,7]
[389958806,1759909849775,-4368.692447,0.00021369,7]
[389958808,1759909849784,-4368.692447,0.00021369,7]
[389958811,1759909849798,-1327.42,0.00021369,2]
[389958813,1759909849810,-4368.692445,0.00021369,7]
[389958815,1759909849820,-504.32650793,0.00021369,2]
[389958817,1759909849829,-507.75186378,0.00021369,2]
[389958819,1759909849839,-1892.193928,0.00021369,7]
[389958821,1759909849853,-1892.193928,0.00021369,7]
[389958823,1759909849862,-3282.53,0.00021369,2]
[389958826,1759909849872,-1892.193928,0.00021369,7]
[389958828,1759909849881,-500.0,0.00021369,2]
[389958830,1759909849890,-1892.193928,0.00021369,7]
[389958832,1759909849899,-1892.193928,0.00021369,7]
[389958834,1759909849909,-1892.193928,0.00021369,7]
[389958836,1759909849921,-26636.75,0.00021369,2]
[389958838,1759909849930,-500.0,0.00021369,2]
[389958840,1759909849939,-1892.193928,0.00021369,7]
[389958842,1759909849948,-500.0,0.00021369,2]
[389958844,1759909849958,-500.0,0.00021369,2]
[389958846,1759909849967,-2924.71,0.00021369,2]
[389958848,1759909849976,-776.46,0.00021369,2]
[389958850,1759909849985,-500.0,0.00021369,2]
[389958852,1759909849995,-1892.193928,0.00021369,7]
[389958854,1759909850004,-500.0,0.00021369,2]
[389958856,1759909850016,-2326.57,0.00021369,2]
[389958858,1759909850025,-1892.193928,0.00021369,7]
[389958860,1759909850034,-1892.193928,0.00021369,7]
[389958862,1759909850044,-14872.76,0.00021369,2]
[389958864,1759909850053,-1892.193928,0.00021369,7]
[389958866,1759909850062,-151.0,0.00021369,7]
[389958868,1759909850072,-1892.193928,0.00021369,7]
[389958870,1759909850081,-151.0,0.00021369,7]
[389958872,1759909850090,-1892.193928,0.00021369,7]
[389958874,1759909850100,-151.0,0.00021369,7]
[389958876,1759909850109,-151.0,0.00021369,7]
[389958878,1759909850118,-1892.193928,0.00021369,7]
[389958881,1759909850127,-151.0,0.00021369,7]
[389958883,1759909850136,-613.90643393,0.00021369,2]
[389958885,1759909850145,-1892.193928,0.00021369,7]
[389958887,1759909850155,-151.0,0.00021369,7]
[389958889,1759909850164,-1892.193928,0.00021369,7]
[389958891,1759909850173,-183.27415,0.00021369,7]
[389958893,1759909850182,-1837.9,0.00021369,2]
[389958895,1759909850191,-1892.193928,0.00021369,7]
[389958897,1759909850200,-618.56,0.00021369,2]
[389958899,1759909850208,-1892.193928,0.00021369,7]
[389958901,1759909850219,-1892.193928,0.00021369,7]
[389958903,1759909850231,-1892.193926,0.00021369,7]
[389958905,1759909850240,-500.0,0.00021369,2]
[389958907,1759909850249,-843.01,0.00021369,2]
[389958909,1759909850259,-500.0,0.00021369,2]
[389958911,1759909850268,-507.60151409,0.00021369,2]
[389958913,1759909850277,-500.0,0.00021369,2]
[389958915,1759909850286,-595.55,0.00021369,2]
[389958917,1759909850296,-500.0,0.00021369,2]
[389958919,1759909850305,-500.0,0.00021369,2]
[389958921,1759909850314,-304.66882393,0.00021369,2]
[389958923,1759909850323,-914.25,0.00021369,2]
[389958944,1759909850499,-1997.3,0.00021369,2]
[389958946,1759909850509,-562.18,0.00021369,2]
[389958948,1759909850518,-971.43,0.00021369,2]
[389958950,1759909850528,-971.43,0.00021369,2]
[389958952,1759909850537,-971.43,0.00021369,2]
[389958954,1759909850546,-151.0,0.00021369,7]
[389958956,1759909850557,-971.43,0.00021369,2]
[389958958,1759909850566,-151.957816,0.00021369,7]
[389958960,1759909850575,-151.0,0.00021369,7]
[389958961,1759909850583,-971.43,0.00021369,2]
[389958964,1759909850593,-971.43,0.00021369,2]
[389958966,1759909850601,-151.0,0.00021369,7]
[389958968,1759909850611,-971.43,0.00021369,2]
[389958970,1759909850620,-151.0,0.00021369,7]
[389958972,1759909850629,-971.43,0.00021369,2]
[389958974,1759909850638,-151.0,0.00021369,7]
[389958976,1759909850647,-971.43,0.00021369,2]
[389958978,1759909850656,-151.0,0.00021369,7]
[389958980,1759909850665,-971.43,0.00021369,2]
[389958981,1759909850674,-151.0,0.00021369,7]
[389958983,1759909850684,-971.43,0.00021369,2]
[389958985,1759909850692,-971.43,0.00021369,2]
[389958987,1759909850702,-971.43,0.00021369,2]
[389958989,1759909850710,-151.0,0.00021369,7]
[389958991,1759909850719,-971.43,0.00021369,2]
[389958994,1759909850728,-222.497629,0.00021369,7]
[389958996,1759909850737,-971.43,0.00021369,2]
[389958998,1759909850746,-971.43,0.00021369,2]
[389959000,1759909850755,-500.0,0.00021369,2]
[389959002,1759909850765,-971.43,0.00021369,2]
[389959003,1759909850774,-500.0,0.00021369,2]
[389959005,1759909850783,-971.43,0.00021369,2]
[389959007,1759909850792,-971.43,0.00021369,2]
[389959009,1759909850802,-646.31951685,0.00021369,2]
[389959011,1759909850811,-971.43,0.00021369,2]
[389959013,1759909850821,-501.28325613,0.00021369,2]
[389959016,1759909850831,-971.43,0.00021369,2]
[389959018,1759909850845,-971.43,0.00021369,2]
[389959020,1759909850854,-315.226475,0.00021369,7]
[389959022,1759909850863,-971.43,0.00021369,2]
[389959024,1759909850872,-971.44370106,0.00021369,2]
[389959026,1759909850883,-315.226475,0.00021369,7]
[389959028,1759909850892,-315.226475,0.00021369,7]
[389959030,1759909850901,-500.0,0.00021369,2]
[389959032,1759909850911,-315.226475,0.00021369,7]
[389959034,1759909850920,-504.78121928,0.00021369,2]
[389959036,1759909850930,-646.23,0.00021369,2]
[389959038,1759909850939,-315.226475,0.00021369,7]
[389959040,1759909850947,-315.226475,0.00021369,7]
[389959042,1759909850957,-315.226475,0.00021369,7]
[389959044,1759909850966,-315.226475,0.00021369,7]
[389959046,1759909850975,-315.226475,0.00021369,7]
[389959048,1759909850984,-769.69,0.00021369,2]
[389959050,1759909850993,-315.226475,0.00021369,7]
[389959052,1759909851003,-500.0,0.00021369,2]
[389959054,1759909851012,-315.226475,0.00021369,7]
[389959056,1759909851020,-315.226475,0.00021369,7]
[389959058,1759909851030,-500.0,0.00021369,2]
[389959060,1759909851038,-315.226475,0.00021369,7]
[389959062,1759909851047,-315.226475,0.00021369,7]
[389959064,1759909851056,-315.226475,0.00021369,7]
[389959066,1759909851066,-315.226475,0.00021369,7]
[389959068,1759909851075,-315.226475,0.00021369,7]
[389959070,1759909851084,-682.16,0.00021369,2]
[389959072,1759909851094,-500.0,0.00021369,2]
[389959074,1759909851103,-315.226475,0.00021369,7]
[389959076,1759909851112,-315.226475,0.00021369,7]
[389959078,1759909851120,-315.226474,0.00021369,7]
[389959080,1759909851129,-4400.84,0.00021369,2]
[389959082,1759909851138,-500.0,0.00021369,2]
[389959084,1759909851147,-151.443601,0.00021369,7]
[389959086,1759909851155,-502.9593191,0.00021369,2]
[389959087,1759909851164,-1285.29,0.00021369,2]
[389959089,1759909851173,-500.0,0.00021369,2]
[389959091,1759909851182,-2339.06,0.00021369,2]
[389959093,1759909851191,-500.0,0.00021369,2]
[389959095,1759909851199,-500.0,0.00021369,2]
[389959097,1759909851208,-219.606528,0.00021369,7]
[389959099,1759909851217,-151.341958,0.00021369,7]
[389959101,1759909851226,-500.0,0.00021369,2]
[389959103,1759909851235,-219.606528,0.00021369,7]
[389959105,1759909851244,-2303.16,0.00021369,2]
[389959107,1759909851253,-219.606528,0.00021369,7]
[389959109,1759909851262,-219.606528,0.00021369,7]
[389959111,1759909851271,-500.0,0.00021369,2]
[389959114,1759909851280,-219.606528,0.00021369,7]
[389959116,1759909851288,-151.0,0.00021369,7]
[389959118,1759909851297,-219.606528,0.00021369,7]
[389959119,1759909851305,-151.0,0.00021369,7]
[389959121,1759909851314,-219.606528,0.00021369,7]
[389959123,1759909851323,-151.0,0.00021369,7]
[389959126,1759909851332,-219.606528,0.00021369,7]
[389959127,1759909851341,-151.0,0.00021369,7]
[389959129,1759909851350,-151.0,0.00021369,7]
[389959131,1759909851359,-500.0,0.00021369,2]
[389959133,1759909851369,-151.0,0.00021369,7]
[389959136,1759909851378,-219.606528,0.00021369,7]
[389959138,1759909851386,-500.0,0.00021369,2]
[389959140,1759909851395,-500.0,0.00021369,2]
[389959141,1759909851404,-219.606528,0.00021369,7]
[389959143,1759909851413,-151.0,0.00021369,7]
[389959145,1759909851422,-500.0,0.00021369,2]
[389959147,1759909851431,-219.606528,0.00021369,7]
[389959149,1759909851439,-151.0,0.00021369,7]
[389959151,1759909851448,-151.0,0.00021369,7]
[389959153,1759909851458,-500.64854554,0.00021369,2]
[389959156,1759909851467,-219.606528,0.00021369,7]
[389959158,1759909851476,-151.0,0.00021369,7]
[389959160,1759909851486,-6981.56469682,0.00021369,2]
[389959198,1759909851831,-3061.09530318,0.00021369,2]
[389959200,1759909851846,-151.0,0.00021369,7]
[389959202,1759909851855,-219.606528,0.00021369,7]
[389959204,1759909851865,-151.0,0.00021369,7]
[389959206,1759909851874,-151.0,0.00021369,7]
[389959208,1759909851883,-219.606528,0.00021369,7]
[389959210,1759909851891,-151.0,0.00021369,7]
[389959212,1759909851900,-156.648447,0.00021369,7]
[389959214,1759909851909,-219.606528,0.00021369,7]
[389959216,1759909851918,-151.0,0.00021369,7]
[389959217,1759909851929,-219.606528,0.00021369,7]
[389959219,1759909851938,-151.0,0.00021369,7]
[389959221,1759909851947,-501.49808194,0.00021369,2]
[389959224,1759909851957,-219.606528,0.00021369,7]
[389959225,1759909851966,-1264.82,0.00021369,2]
[389959227,1759909851975,-151.0,0.00021369,7]
[389959229,1759909851984,-185.5266244,0.00021369,7]
[389959263,1759909852358,-34.0799036,0.00021369,7]
[389959264,1759909852368,-151.0,0.00021369,7]
[389959265,1759909852377,-219.606528,0.00021369,7]
[389959266,1759909852387,-151.0,0.00021369,7]
[389959267,1759909852396,-219.606538,0.00021369,7]
[389959268,1759909852405,-500.0,0.00021369,2]
[389959270,1759909852413,-151.0,0.00021369,7]
[389959271,1759909852422,-151.0,0.00021369,7]
[389959273,1759909852431,-151.0,0.00021369,7]
[389959275,1759909852441,-151.0,0.00021369,7]
[389959277,1759909852450,-222.320223,0.00021369,2]
[389959280,1759909852460,-151.0,0.00021369,7]
[389959282,1759909852469,-151.0,0.00021369,7]
[389959284,1759909852478,-500.0,0.00021369,2]
[389959286,1759909852487,-151.0,0.00021369,7]
[389959288,1759909852496,-151.0,0.00021369,7]
[389959290,1759909852504,-151.0,0.00021369,7]
[389959292,1759909852513,-151.0,0.00021369,7]
[389959294,1759909852521,-911.9,0.00021369,2]
[389959296,1759909852530,-151.0,0.00021369,7]
[389959298,1759909852539,-15505.49,0.00021369,2]
[389959300,1759909852549,-151.0,0.00021369,7]
[389959301,1759909852557,-151.0,0.00021369,7]
[389959302,1759909852566,-197.15921158,0.00021369,2]
[389959304,1759909852575,-151.0,0.00021369,7]
[389959306,1759909852584,-151.0,0.00021369,7]
[389959308,1759909852593,-155.994296,0.00021369,7]
[389959310,1759909852601,-501.46118553,0.00021369,2]
[389959312,1759909852610,-501.17078047,0.00021369,2]
[389959314,1759909852619,-847.75003372,0.00021369,2]
[389959316,1759909852630,-3255.89996628,0.00021369,2]
[389959318,1759909852639,-1139.53,0.00021369,2]
[389959320,1759909852651,-151.0,0.00021369,7]
[389959322,1759909852660,-500.0,0.00021369,2]
[389959324,1759909852669,-4103.65,0.00021369,2]
[389959326,1759909852677,-151.0,0.00021369,7]
[389959328,1759909852688,-4103.65,0.00021369,2]
[389959330,1759909852703,-4103.65,0.00021369,2]
[389959332,1759909852712,-151.0,0.00021369,7]
[389959334,1759909852721,-4103.65,0.00021369,2]
[389959336,1759909852729,-155.721022,0.00021369,7]
[389959338,1759909852740,-4104.13,0.00021369,2]
[389959340,1759909852749,-4103.65,0.00021369,2]
[389959342,1759909852758,-503.41186619,0.00021369,2]
[389959344,1759909852766,-4103.65,0.00021369,2]
[389959346,1759909852775,-4103.65,0.00021369,2]
[389959348,1759909852784,-4103.65,0.00021369,2]
[389959350,1759909852792,-4103.65,0.00021369,2]
[389959352,1759909852801,-4103.65,0.00021369,2]
[389959354,1759909852810,-4103.65,0.00021369,2]
[389959356,1759909852819,-501.52665377,0.00021373,2]
[389959357,1759909852828,-500.0,0.00021373,2]
[389959359,1759909852839,-642.69891272,0.00021373,2]
[389959361,1759909852851,-501.63346153,0.00021373,2]
[389959363,1759909852861,-508.41410935,0.00021373,2]
[389959365,1759909852870,-502.91723863,0.00021373,2]
[389959367,1759909852879,-500.0,0.00021373,2]
[389959369,1759909852889,-501.90531443,0.00021373,2]
[389959371,1759909852898,-206.17229758,0.00021373,2]
[389959546,1759909854585,-545.11,0.00021359,10]
[389959548,1759909854594,-473.8569137,0.00021369,2]
[389959550,1759909854605,-3629.7930863,0.00021369,2]
[389959552,1759909854614,-4103.65,0.00021369,2]
[389959554,1759909854623,-576.72,0.00021369,2]
[389959556,1759909854632,-4103.65,0.00021369,2]
[389959558,1759909854641,-1088.56768707,0.00021369,2]
[389960375,1759909864287,1000.0,0.00027397,120]
[389961396,1759909877605,17269.84303801,0.00019,4]
[389961397,1759909877627,19549.77200488,0.00019,4]
[389961398,1759909966728,192.252376,0.00024,30]
[389961399,1759910170294,1589.20674173,0.00027397,120]
[389961400,1759910203583,63696.64312698,0.00018,4]
[389961401,1759910240474,-150.0,0.00018999,2]
[389961402,1759910240505,-1200.0,0.00018999,2]
[389961403,1759910240537,-192.252376,0.00019,4]
[389961404,1759910256152,-192.252376,0.00019325,4]
[389961405,1759910256184,-172.5,0.00019599,2]
[389961406,1759910256215,-192.252376,0.0001965,4]
[389961407,1759910256244,-192.252376,0.00019975,4]
[389961408,1759910256274,-195.0,0.00020199,2]
[389961409,1759910256306,-300.0,0.00020299,2]
[389961410,1759910256338,-192.252376,0.000203,4]
[389961411,1759910256368,-181.09918064,0.000205,2]
[389961412,1759910256397,-177.88318457,0.000206,2]
[389961413,1759910256427,-217.5,0.00020799,2]
[389961414,1759910256456,-745.0,0.0002081,2]
[389961415,1759910260191,-5134.91205658,0.0002081,2]
[389961416,1759910262262,-10000.01,0.0002081,2]
[389961417,1759910266231,-10000.01,0.0002081,2]
[389961418,1759910268242,-10000.01,0.0002081,2]
[389961419,1759910432064,200.0,0.00027001,120]
[389961421,1759910564378,182.639757,0.00024,30]
[389961422,1759910611760,-1000.0,0.00020048,2]
[389961423,1759910611791,-252.74429329,0.00020134,2]
[389961424,1759910611822,-1182.53235325,0.00020234,2]
[389961425,1759910611852,-1182.53235325,0.00020422,2]
[389961426,1759910611882,-160.0,0.00020656,2]
[389961427,1759910611910,-177.88318457,0.000207,2]
[389961428,1759910611939,-906.09327803,0.00020764,2]
[389961429,1759910612182,-276.43907522,0.00020764,2]
[389961430,1759910612253,-300.0,0.0002082,2]
[389961431,1759910612282,-970.70434525,0.00020821,2]
[389961432,1759910612310,-3579.66674588,0.00020821,2]
[389961433,1759910612394,-299.26781774,0.00020821,2]
[389961434,1759910613663,-177.88318457,0.000209,2]
[389961435,1759910613690,-1182.53235325,0.00020967,2]
[389961436,1759910613720,-259.13537162,0.00021067,2]
[389961437,1759910613752,-519.18,0.0002108,3]
[389961438,1759910613783,-259.59,0.0002108,3]
[389961439,1759910613812,-778.79,0.0002108,3]
[389961440,1759910613840,-454.26,0.0002108,10]
[389961441,1759910613868,-378.55,0.0002108,10]
[389961442,1759910614008,-2391.00901652,0.00021088,2]
[389961443,1759910614037,-340.28816865,0.00021089,2]
[389961444,1759910614069,-212.77884709,0.00021089,2]
[389961445,1759910614097,-405.0,0.00021089,2]
[389961446,1759910614125,-353.00175403,0.00021089,2]
[389961447,1759910614155,-500.0,0.00021089,2]
[389961448,1759910614183,-280.50129639,0.00021089,2]
[389961449,1759910629144,315.46,0.0002108,10]
[389961450,1759910640144,262.88,0.0002108,10]
[389961451,1759910654549,219.07,0.0002108,10]
[389961452,1759910698802,182.56,0.0002108,10]
[389961455,1759910728428,54.88183464,0.0002108,10]
[389961456,1759910728453,97.24816536,0.0002108,10]
[389961457,1759910731715,200.0,0.00028043,120]
[389961458,1759910737089,-359.07744498,0.0002109,2]
[389961459,1759910743426,760.67,0.0002108,10]
[389961460,1759910744782,954.22257809,0.0002099,2]
[389961461,1759910776669,181.19791851,0.0002099,2]
[389961462,1759910791822,200.0,0.00023837,120]
[389961463,1759910815759,259.59,0.0002108,3]
[389961464,1759910819516,409.0,0.00028767,120]
[389961465,1759910826632,778.77,0.0002108,3]
[389961466,1759910831085,-15738.42913803,0.0002109,2]
[389961467,1759910838200,150.0,0.0002109,2]
[389961468,1759910846149,-965.70447081,0.0002109,2]
[389961469,1759910851323,200.0,0.00023885,120]
[389961470,1759910854971,-160.0,0.0002109,2]
[389961471,1759910855113,-5484.65742191,0.0002109,2]
[389961472,1759910859003,-10000.01,0.0002109,2]
[389961473,1759910971328,200.0,0.00028476,120]
[389961474,1759911012719,490.0,0.00021,2]
[389961482,1759911032114,-215.5,0.0002108,3]
[389961483,1759911032124,-565.0,0.00021089,2]
[389961484,1759911032134,-348.14794274,0.00021089,2]
[389961485,1759911032143,-359.45643935,0.00021089,2]
[389961486,1759911032153,-47675.02284107,0.0002109,2]
[389961538,1759911038097,-178634.19837394,0.0002109,2]
[389961540,1759911038106,-150.0,0.0002109,2]
[389961542,1759911038116,-160.0,0.0002109,2]
[389961544,1759911038126,-234.25206901,0.0002109,2]
[389961546,1759911038135,-500.0,0.00021095,4]
[389961548,1759911038144,-4360.6744519,0.00021128,2]
[389961550,1759911038154,-500.0,0.00021252,4]
[389961552,1759911038165,-262.26320026,0.00021259,2]
[389961554,1759911038175,-500.0,0.00021268,4]
[389961556,1759911038184,-500.0,0.00021268,4]
[389961558,1759911038193,-500.0,0.00021268,4]
[389961560,1759911038205,-500.0,0.00021268,4]
[389961562,1759911038215,-500.0,0.00021268,4]
[389961564,1759911038224,-385.26706179,0.00021268,4]
[389961566,1759911038233,-28723.40779043,0.00021269,3]
[389961568,1759911038243,-9036.3845864,0.00021269,2]
[389961570,1759911038252,-1220.53661484,0.00021295,2]
[389961572,1759911038262,-163.0,0.000213,2]
[389961574,1759911038271,-163.0,0.000213,2]
[389961576,1759911038281,-163.0,0.000213,3]
[389961578,1759911038291,-163.0,0.000213,3]
[389961580,1759911038301,-391.6932166,0.000213,2]
[389961582,1759911038310,-391.6932166,0.000213,2]
[389961584,1759911038320,-388.4490508,0.000213,2]
[389961586,1759911038330,-391.6932166,0.000213,2]
[389961588,1759911038339,-391.6932166,0.000213,2]
[389961590,1759911038348,-391.6932166,0.000213,2]
[389961592,1759911038357,-160.0,0.00021352,2]
[389961594,1759911038367,-160.0,0.00021352,2]
[389961596,1759911038376,-402.0838479,0.00021352,2]
[389961598,1759911038385,-160.0,0.00021352,2]
[389961600,1759911038394,-160.0,0.00021352,2]
[389961602,1759911038404,-500.0,0.00021356,2]
[389961604,1759911038413,-1000.0,0.00021356,2]
[389961606,1759911038423,-517.47399308,0.00021356,2]
[389961608,1759911038433,-500.0,0.00021356,2]
[389961610,1759911038442,-500.0,0.00021356,2]
[389961612,1759911038452,-500.0,0.00021356,2]
[389961614,1759911038461,-500.0,0.00021356,2]
[389961616,1759911038470,-500.0,0.00021356,2]
[389961618,1759911038481,-500.0,0.00021356,2]
[389961620,1759911038490,-500.0,0.00021356,2]
[389961622,1759911038500,-18603.8837,0.00021356,2]
[389961624,1759911038509,-500.0,0.00021356,2]
[389961626,1759911038519,-500.0,0.00021356,2]
[389961628,1759911038528,-500.0,0.00021356,2]
[389961630,1759911038537,-500.0,0.00021356,2]
[389961632,1759911038546,-500.0,0.00021356,2]
[389961634,1759911038556,-500.0,0.00021356,2]
[389961636,1759911038566,-500.0,0.00021356,2]
[389961638,1759911038575,-500.0,0.00021356,2]
[389961640,1759911038584,-500.0,0.00021356,2]
[389961642,1759911038593,-500.0,0.00021356,2]
[389961644,1759911038603,-500.0,0.00021356,2]
[389961646,1759911038612,-5321.0,0.00021362,2]
[389961648,1759911038622,-500.0,0.00021369,2]
[389961650,1759911038632,-500.0,0.00021369,2]
[389961652,1759911038642,-481.9587971,0.00021369,2]
[389961654,1759911038651,-313.57071859,0.00021369,2]
[389961656,1759911038661,-500.0,0.00021369,2]
[389961658,1759911038670,-501.34124379,0.00021369,2]
[389961659,1759911038680,-29152.7512477,0.00021369,2]
[389961660,1759911038689,-1090.6,0.00021369,2]
[389961661,1759911038699,-348.06178688,0.00021369,2]
[389961662,1759911038708,-500.0,0.00021369,2]
[389961663,1759911038718,-500.0,0.00021369,2]
[389961664,1759911038727,-500.0,0.00021369,2]
[389961665,1759911038737,-626.69998853,0.00021369,2]
[389961666,1759911038747,-488.51803412,0.00021369,2]
[389961667,1759911038756,-500.0,0.00021369,2]
[389961668,1759911038766,-3401.6319743,0.00021369,2]
[389961669,1759911038776,-500.0,0.00021369,2]
[389961670,1759911038785,-500.0,0.00021369,2]
[389961671,1759911038795,-500.0,0.00021369,2]
[389961672,1759911038805,-500.0,0.00021369,2]
[389961673,1759911038814,-500.0,0.00021369,2]
[389961674,1759911038825,-500.0,0.00021369,2]
[389961675,1759911038835,-500.0,0.00021369,2]
[389961676,1759911038846,-500.0,0.00021369,2]
[389961677,1759911038855,-500.0,0.00021369,2]
[389961678,1759911038866,-520.0,0.00021369,3]
[389961680,1759911038876,-502.62851123,0.00021369,2]
[389961682,1759911038885,-500.0,0.00021369,2]
[389961684,1759911038895,-500.0,0.00021369,2]
[389961686,1759911038905,-1513.45,0.00021369,2]
[389961688,1759911038914,-500.0,0.00021369,2]
[389961690,1759911038923,-500.0,0.00021369,2]
[389961692,1759911038933,-152.22753,0.00021369,7]
[389961694,1759911038942,-500.0,0.00021369,2]
[389961696,1759911038952,-1572.12,0.00021369,2]
[389961698,1759911038961,-518.51,0.00021369,2]